bitfinex-derivatives/quotes_ETHF0:USTF0_20260204
["timestamp","ask_amount","ask_price","bid_price","bid_amount"]
[1770238849590,0.46030366,2173.8,2172.7,0.48401485]
[1770238850289,0.46030366,2173.8,2172.8,0.48401485]
[1770238851293,0.46030366,2173.8,2172.8,0.71458485]
[1770238851592,0.46030366,2173.8,2172.9,0.71517189]
[1770238852188,40.8,2173.9,2173.1,0.23054]
[1770238852384,0.46,2174.0,2173.1,0.48461189]
[1770238852588,0.46,2174.0,2173.3,0.23052]
[1770238852789,0.46030366,2174.9,2173.4,0.23051]
[1770238853094,0.46030366,2174.7,2173.4,0.71512189]
[1770238853293,0.46030366,2174.7,2173.7,0.48816587]
[1770238853493,0.46030366,2174.7,2173.7,0.71864587]
[1770238853694,0.46030366,2174.7,2173.8,0.48816587]
[1770238854493,0.46030366,2174.7,2173.9,0.23046]
[1770238856994,0.46030366,2174.7,2174.0,0.23045]
[1770238857395,40.8,2174.8,2174.0,0.23045]
[1770238857600,40.8,2174.8,2174.1,0.23043]
[1770238857897,0.94550548,2175.0,2174.2,0.23043]
[1770238858099,0.94550548,2175.0,2174.2,0.23638597]
[1770238858300,40.8,2174.9,2174.2,0.23638597]
[1770238858803,0.00365488,2175.3,2174.5,0.23039]
[1770238858804,0.48916036,2175.3,2174.5,0.23039]
[1770238859194,40.8,2175.2,2174.5,0.23039]
[1770238859395,0.49781358,2176.2,2175.4,0.2303]
[1770238859800,40.8,2176.1,2175.4,0.2303]
[1770238860001,40.8,2176.1,2175.6,0.23028]
[1770238860202,0.49781358,2176.5,2175.7,0.23027]
[1770238860403,0.50267896,2176.5,2175.7,0.23027]
[1770238860804,0.50267896,2176.5,2175.8,0.9183]
[1770238861103,0.50267896,2176.5,2175.8,0.92371121]
[1770238862002,0.00486538,2176.5,2175.9,0.47595461]
[1770238862201,0.49781358,2176.8,2176.0,0.23023]
[1770238862505,0.59781358,2177.1,2176.1,0.23022]
[1770238862806,0.59781358,2177.1,2176.1,0.70617461]
[1770238863203,0.10351157,2177.1,2176.4,0.23018]
[1770238863409,0.10351157,2177.1,2176.5,0.47595461]
[1770238864000,0.49781358,2177.8,2176.6,0.47595461]
[1770238864210,0.49781358,2177.8,2176.7,0.23016]
[1770238865208,0.50297104,2177.8,2176.7,0.23016]
[1770238865601,40.8,2177.7,2176.7,0.23016]
[1770238865806,0.49781358,2177.6,2176.7,0.23016]
[1770238867110,0.49781358,2177.4,2176.2,0.23021]
[1770238867509,0.49781358,2177.4,2176.3,0.23016]
[1770238867706,0.49781358,2177.4,2176.4,0.36444135]
[1770238868107,0.49781358,2177.4,2176.5,0.23016]
[1770238868308,0.49781358,2177.4,2176.5,0.59460135]
[1770238868507,0.49781358,2177.4,2176.7,0.23016]
[1770238868906,41.29781358,2177.7,2176.7,0.59460135]
[1770238869209,0.49781358,2178.3,2177.7,0.23005]
[1770238869409,0.49781358,2178.6,2176.8,1.89633056]
[1770238869604,0.49781358,2178.4,2176.8,0.83762056]
[1770238869810,0.49781358,2178.4,2176.8,0.46]
[1770238870111,0.49781358,2178.4,2176.9,0.4603]
[1770238870306,0.50127899,2178.4,2177.0,0.23012]
[1770238870712,0.50127899,2178.4,2177.1,0.23016]
[1770238872212,0.58121642,2178.4,2176.9,0.0059204]
[1770238872408,0.58121642,2178.4,2177.0,0.23016]
[1770238872612,0.50127899,2178.4,2177.0,0.23016]
[1770238873012,0.50127899,2178.4,2176.2,0.23021]
[1770238873013,0.49781358,2178.3,2176.2,0.23021]
[1770238873211,0.49781358,2178.3,2175.8,1.30341741]
[1770238873212,0.49781358,2177.5,2175.9,0.23016]
[1770238873405,0.49781358,2177.3,2175.9,0.23016]
[1770238874008,0.49781358,2177.3,2175.9,0.23458221]
[1770238874210,0.49781358,2177.1,2175.1,0.23033]
[1770238874410,0.49159791,2176.7,2175.1,0.70628461]
[1770238874605,0.49159791,2176.7,2175.3,0.70625461]
[1770238874807,0.49159791,2176.7,2175.5,0.47595461]
[1770238875214,0.4954973,2176.7,2175.5,0.48166576]
[1770238875712,0.00389939,2176.7,2176.0,0.47595461]
[1770238875905,0.00389939,2176.7,2176.0,0.70618461]
[1770238876106,0.49719468,2176.7,2175.6,0.47595461]
[1770238876311,40.8,2176.6,2175.7,0.70622461]
[1770238876510,0.00389939,2176.7,2175.5,1.06504115]
[1770238876511,0.00389939,2176.7,2175.9,0.47595461]
[1770238876709,0.49329529,2177.3,2176.1,0.47595461]
[1770238876909,40.8,2177.2,2176.3,0.47595461]
[1770238877114,40.8,2177.2,2176.4,0.47595461]
[1770238877313,40.8,2177.2,2176.4,0.70614461]
[1770238877614,0.46,2177.4,2176.7,0.47595461]
[1770238877814,0.46547357,2177.4,2176.7,0.47595461]
[1770238878815,0.00547357,2177.4,2176.7,0.47595461]
[1770238879914,0.22985,2179.7,2178.1,0.47595461]
[1770238880117,0.49366102,2178.6,2177.6,0.47595461]
[1770238880312,40.8,2178.5,2177.6,0.47595461]
[1770238880620,0.07994441,2178.2,2177.2,0.50741225]
[1770238880918,0.07994441,2178.2,2177.2,0.5117792]
[1770238880919,0.07994441,2178.1,2177.2,0.5117792]
[1770238881121,0.07994441,2177.9,2177.2,0.5117792]
[1770238881717,0.07994441,2177.8,2177.2,0.5117792]
[1770238881917,0.07994441,2178.0,2177.2,0.5117792]
[1770238882314,0.07994441,2177.9,2177.2,0.5117792]
[1770238882513,0.07994441,2178.0,2177.2,0.5117792]
[1770238883019,0.07994441,2177.9,2177.2,0.5117792]
[1770238883316,0.07994441,2177.9,2177.2,0.00436695]
[1770238883512,0.07994441,2177.8,2177.2,0.00436695]
[1770238883714,0.08417143,2178.2,2177.2,0.51476554]
[1770238884011,0.07994441,2178.0,2177.2,0.51476554]
[1770238884414,0.07994441,2177.9,2177.2,0.51476554]
[1770238884610,0.07994441,2178.0,2177.2,0.51476554]
[1770238884816,0.07994441,2178.1,2177.2,0.51476554]
[1770238886121,0.00422702,2178.2,2177.2,0.51476554]
[1770238886321,0.07994441,2177.9,2177.2,0.00436695]
[1770238886820,0.07994441,2177.8,2177.2,0.00436695]
[1770238887121,0.07994441,2177.9,2177.2,0.00436695]
[1770238887321,0.00422702,2178.2,2177.2,0.00436695]
[1770238887516,0.07994441,2177.8,2177.2,0.00436695]
[1770238887918,0.07994441,2177.6,2177.2,0.52075307]
[1770238888118,0.07994441,2177.9,2177.2,0.52075307]
[1770238888518,0.07994441,2177.7,2177.2,0.52075307]
[1770238888718,0.00422702,2178.2,2177.2,0.52075307]
[1770238888920,0.07994441,2178.1,2177.2,0.52075307]
[1770238889615,0.00422702,2178.2,2177.2,0.52075307]
[1770238890519,0.00422702,2178.2,2177.2,0.75086307]
[1770238890724,0.00422702,2178.2,2177.3,0.51698779]
[1770238891820,0.08417143,2178.2,2177.3,0.51698779]
[1770238892117,40.8,2178.5,2177.7,0.23006]
[1770238892420,40.87994441,2178.5,2177.7,0.74705037]
[1770238892624,0.07994441,2178.3,2177.4,2.7227234]
[1770238892816,0.48017638,2177.5,2176.0,11.80226171]
[1770238893015,1.05864,2177.0,2174.7,5.36310247]
[1770238893223,0.48017638,2176.8,2174.9,1.05964]
[1770238893523,40.8,2176.3,2175.1,1.05953]
[1770238893920,40.80594197,2176.3,2175.2,4.85867525]
[1770238894224,40.80594197,2176.3,2175.5,4.85867525]
[1770238894523,40.80594197,2176.3,2175.1,1.06327275]
[1770238894826,0.48017638,2177.8,2176.3,0.48492215]
[1770238895626,40.8,2177.7,2176.3,0.48492215]
[1770238895826,0.4741397,2177.8,2176.4,0.48492215]
[1770238896727,0.4741397,2177.8,2176.1,0.48492215]
[1770238898626,0.45505358,2177.2,2175.8,0.48492215]
[1770238899021,0.45505358,2177.2,2175.2,0.48492215]
[1770238901232,0.44620778,2177.0,2175.2,0.48492215]
[1770238901431,0.44270672,2176.8,2175.2,0.48492215]
[1770238901730,0.46,2176.9,2175.2,0.48492215]
[1770238901731,0.44270672,2176.5,2175.2,0.48492215]
[1770238902330,0.44270672,2176.5,2175.3,0.48492215]
[1770238903031,40.8,2176.6,2175.5,0.48492215]
[1770238903229,40.8,2176.6,2175.6,0.48492215]
[1770238903532,40.8,2176.6,2175.7,5.3435974]
[1770238903729,40.8,2176.6,2175.7,0.48492215]
[1770238904032,0.46,2176.9,2176.3,4.85867525]
[1770238904231,0.46,2176.9,2176.2,0.48492215]
[1770238904433,40.8,2176.8,2176.4,4.85867525]
[1770238904834,40.8,2176.8,2176.5,4.85867525]
[1770238905031,40.8,2176.8,2176.4,4.85867525]
[1770238905427,40.8,2176.8,2176.5,4.85867525]
[1770238905729,40.8,2176.8,2176.4,4.85867525]
[1770238906132,40.8,2176.8,2176.7,4.85867525]
[1770238906426,0.46,2176.9,2176.7,0.00412249]
[1770238906631,0.00481342,2177.8,2176.7,0.48904464]
[1770238906826,0.00481342,2177.8,2176.9,4.85867525]
[1770238907031,0.4457993,2177.8,2176.8,0.9187]
[1770238907228,40.8,2177.7,2176.2,0.48492215]
[1770238907638,2.20683873,2177.5,2175.9,0.5089828]
[1770238907933,42.0999576,2177.4,2175.9,0.5089828]
[1770238908132,41.0415376,2177.3,2175.9,0.51265224]
[1770238908333,0.46,2177.2,2175.9,0.51265224]
[1770238908928,0.46,2177.2,2175.9,5.37132749]
[1770238909131,0.46,2177.2,2176.5,0.5089828]
[1770238909535,0.46,2177.2,2176.7,5.37156936]
[1770238909729,40.8,2177.7,2176.8,0.51289411]
[1770238910129,40.8,2177.7,2177.4,0.51289411]
[1770238910534,40.8,2177.7,2177.6,5.37156936]
[1770238910731,40.8,2177.7,2177.6,0.5182878]
[1770238910932,40.8,2177.7,2177.6,5.37696305]
[1770238911129,0.00481342,2177.8,2177.7,0.51289411]
[1770238911335,29.229,2178.5,2177.8,0.51491506]
[1770238911636,29.229,2178.5,2177.6,0.00539369]
[1770238912343,0.00548324,2178.5,2177.7,4.85867525]
[1770238912933,0.00548324,2178.5,2177.6,0.00539369]
[1770238913541,0.00548324,2178.5,2177.6,0.52045975]
[1770238914529,0.00548324,2178.5,2177.6,0.00539369]
[1770238915040,0.00548324,2178.5,2177.6,0.52043857]
[1770238915539,0.00548324,2178.5,2177.6,0.00539369]
[1770238916140,0.00548324,2178.5,2177.6,0.51953776]
[1770238916339,0.00548324,2178.5,2177.7,0.51414407]
[1770238917642,40.8,2178.4,2177.6,0.00539369]
[1770238919040,40.8,2178.4,2177.6,5.37966952]
[1770238919341,40.8,2178.4,2177.7,5.37427583]
[1770238921938,40.8,2178.4,2177.8,4.85867525]
[1770238922346,40.8,2178.4,2178.1,0.51414815]
[1770238922644,0.00548324,2178.5,2178.2,0.51414815]
[1770238922938,0.22996,2178.7,2177.6,0.51954184]
[1770238923148,40.8,2178.9,2177.8,0.51414815]
[1770238923447,40.8,2178.9,2177.9,0.51414815]
[1770238923647,40.8,2178.9,2177.9,4.90734016]
[1770238923842,40.80340773,2178.9,2178.0,4.39319201]
[1770238924238,40.80340773,2178.9,2178.0,4.90270319]
[1770238924444,40.80340773,2178.9,2178.2,4.39319201]
[1770238924643,40.80340773,2178.9,2178.2,4.90270319]
[1770238924941,40.80340773,2178.9,2177.7,0.50951118]
[1770238925146,40.80340773,2178.9,2177.7,4.90270319]
[1770238925449,40.80340773,2178.9,2177.9,4.39319201]
[1770238925644,40.80340773,2178.9,2178.1,4.90167194]
[1770238925849,40.80340773,2178.9,2178.2,0.50847993]
[1770238926044,40.80340773,2178.9,2178.4,4.39319201]
[1770238926348,40.80340773,2178.9,2178.6,4.39319201]
[1770238926543,40.80340773,2178.9,2178.7,4.39319201]
[1770238926740,41.0415376,2179.6,2178.8,0.50847993]
[1770238926942,11.82142042,2180.5,2178.7,4.39319201]
[1770238926943,3.70159101,2181.1,2179.7,1.05729]
[1770238927147,0.1,2181.1,2179.7,2.20683873]
[1770238927342,0.51041847,2180.8,2179.4,4.07232494]
[1770238927548,39.47232453,2180.9,2179.5,4.9788563]
[1770238927549,0.51041847,2180.6,2179.5,4.9788563]
[1770238927747,40.8,2180.5,2179.2,4.07232494]
[1770238928054,80.782743,2180.5,2179.5,0.00337068]
[1770238928255,0.51041847,2180.4,2179.5,0.00337068]
[1770238928449,0.51041847,2180.3,2179.5,0.00337068]
[1770238928652,0.51041847,2180.1,2179.0,5.29148015]
[1770238928858,45.06741847,2180.1,2179.1,5.29148015]
[1770238929058,84.539743,2180.1,2179.2,5.29148015]
[1770238929260,0.51041847,2180.1,2179.0,4.07232494]
[1770238929460,0.51041847,2180.1,2179.1,5.27344021]
[1770238929660,0.51943228,2180.0,2179.1,0.00581571]
[1770238930057,39.47232453,2179.9,2179.1,0.00581571]
[1770238930468,0.51943228,2180.0,2179.1,0.00581571]
[1770238930763,0.51943228,2179.9,2179.1,0.00581571]
[1770238931160,39.99175681,2179.8,2179.1,0.00581571]
[1770238931362,0.51943228,2179.8,2179.1,0.00581571]
[1770238931668,0.51855717,2180.2,2179.1,0.00581571]
[1770238931863,0.51855717,2180.2,2179.2,5.26841658]
[1770238932164,0.51855717,2180.2,2179.1,0.00581571]
[1770238932467,0.51855717,2180.1,2179.2,5.26837877]
[1770238932657,44.756,2180.4,2179.1,1.06340571]
[1770238932962,0.00577581,2180.6,2179.3,5.12982494]
[1770238933167,0.51855717,2180.3,2179.4,5.26688261]
[1770238933365,0.51855717,2180.3,2179.1,4.30805065]
[1770238933664,80.78378007,2180.2,2179.2,5.26579038]
[1770238933865,80.78378007,2180.2,2179.1,0.23572571]
[1770238933866,0.51145554,2180.1,2179.1,0.23572571]
[1770238934060,0.51145554,2180.0,2179.2,5.26667428]
[1770238934265,0.51145554,2180.0,2179.1,0.23572571]
[1770238934466,39.47232453,2179.9,2179.2,5.26661815]
[1770238934668,39.47232453,2179.9,2179.1,0.23572571]
[1770238934866,0.51145554,2180.0,2179.2,5.26655048]
[1770238935067,39.47232453,2180.0,2179.1,0.23572571]
[1770238935263,39.47232453,2180.0,2179.2,5.26533597]
[1770238935463,39.47232453,2180.0,2179.3,5.26725542]
[1770238935665,39.47232453,2180.0,2179.1,0.23572571]
[1770238935864,39.47232453,2180.0,2179.2,5.26739299]
[1770238936064,39.47232453,2180.0,2179.3,5.26739299]
[1770238936266,0.51145554,2180.3,2179.1,4.30805065]
[1770238936465,39.98378007,2180.3,2179.2,5.2605991]
[1770238936665,80.78378007,2180.3,2179.3,5.2605991]
[1770238936858,0.52368179,2180.2,2179.1,4.30805065]
[1770238937061,0.52368179,2180.0,2179.2,5.26331961]
[1770238937261,0.52359655,2179.8,2179.1,0.00581571]
[1770238937567,0.52359655,2179.7,2178.9,0.8445]
[1770238937769,14.28919655,2179.6,2178.9,0.8445]
[1770238938165,53.23792453,2179.5,2178.9,0.8445]
[1770238938366,53.76152108,2179.5,2179.0,5.26501557]
[1770238938564,53.76152108,2179.5,2179.0,0.00479381]
[1770238938770,13.7656,2179.4,2179.0,0.00479381]
[1770238939066,14.28919655,2179.4,2178.9,0.8445]
[1770238939367,0.52359655,2179.4,2179.0,5.270596]
[1770238939565,0.52359655,2179.4,2178.9,0.8445]
[1770238939767,0.52453416,2179.3,2178.4,4.06167856]
[1770238939961,0.47702053,2179.0,2177.3,0.2301]
[1770238940161,0.22998,2178.5,2176.4,6.73987535]
[1770238940370,0.47702053,2178.2,2176.2,0.23021]
[1770238940661,0.47702053,2177.8,2175.7,0.68927]
[1770238940868,0.47702053,2177.5,2175.7,0.459]
[1770238941064,0.48156422,2177.5,2175.7,0.46493307]
[1770238941261,0.48156422,2177.5,2175.8,0.0725]
[1770238941262,0.47702053,2177.3,2175.8,0.0725]
[1770238941564,0.47702053,2177.1,2175.8,0.0725]
[1770238941766,0.47702053,2177.1,2175.7,0.00593307]
[1770238941963,0.47702053,2176.9,2175.7,0.00593307]
[1770238942266,0.47702053,2176.2,2174.4,0.50445005]
[1770238942469,0.47702053,2175.7,2173.8,0.50445005]
[1770238942669,0.47702053,2175.7,2173.5,0.50445005]
[1770238942966,0.47702053,2175.5,2173.5,0.50445005]
[1770238943167,0.47702053,2175.3,2173.5,0.50930714]
[1770238943372,0.47702053,2175.1,2173.5,0.50930714]
[1770238943568,0.47702053,2174.9,2173.5,0.00485709]
[1770238944073,0.4655438,2174.7,2173.5,0.00485709]
[1770238944381,0.4655438,2174.1,2171.9,0.49833009]
[1770238944576,0.4655438,2173.9,2171.9,0.49833009]
[1770238944779,0.4655438,2173.9,2172.6,0.49833009]
[1770238945076,38.64069603,2173.8,2173.0,0.49833009]
[1770238945276,0.4655438,2174.1,2173.0,0.49833009]
[1770238945471,0.4655438,2174.0,2172.6,0.00379068]
[1770238945776,0.4655438,2173.9,2172.6,0.00379068]
[1770238945972,0.4655438,2174.5,2173.1,1.0605]
[1770238946271,0.46987779,2174.5,2173.2,0.49833009]
[1770238946578,0.4655438,2174.3,2173.3,0.49833009]
[1770238946776,0.4655438,2174.3,2173.5,2.75062721]
[1770238947077,0.4655438,2174.3,2173.3,0.49833009]
[1770238947078,38.64069603,2174.2,2173.6,2.75062721]
[1770238947376,38.64069603,2174.2,2173.3,0.49833009]
[1770238947577,38.64069603,2174.2,2173.6,2.75062721]
[1770238947776,0.00433399,2174.5,2173.9,2.75062721]
[1770238947978,37.78815414,2174.4,2173.7,0.49833009]
[1770238948276,40.8,2174.3,2173.9,2.75062721]
[1770238948471,37.78815414,2174.4,2174.2,2.75062721]
[1770238948776,37.78815414,2174.4,2173.3,0.49833009]
[1770238948971,0.4655438,2174.3,2173.3,2.75062721]
[1770238949168,0.4655438,2174.3,2173.1,0.49833009]
[1770238949372,79.05369794,2174.2,2173.2,2.75062721]
[1770238949573,40.8,2174.2,2173.2,3.25308807]
[1770238949777,40.8,2174.2,2173.6,2.75062721]
[1770238949972,35.15064837,2174.1,2173.6,3.2489573]
[1770238950175,35.15064837,2174.6,2174.0,0.49833009]
[1770238950377,0.4655438,2175.1,2174.0,0.49833009]
[1770238950573,75.95064837,2175.0,2174.2,2.28629322]
[1770238950970,35.15064837,2175.0,2174.5,2.28629322]
[1770238951176,0.00569912,2175.0,2174.7,2.78462331]
[1770238951473,0.4655438,2175.5,2174.8,2.28629322]
[1770238951678,35.15064837,2175.4,2174.7,0.49833009]
[1770238951977,0.4655438,2175.3,2174.2,0.49833009]
[1770238952176,0.4655438,2175.3,2173.8,0.49833009]
[1770238952376,0.4655438,2175.1,2173.8,0.49833009]
[1770238952577,0.4655438,2174.9,2173.8,0.00439235]
[1770238952779,0.4655438,2174.7,2173.1,0.49833009]
[1770238953175,0.4655438,2174.5,2173.1,0.49833009]
[1770238953678,0.4655438,2174.3,2173.1,0.00326845]
[1770238954178,35.15064837,2174.2,2173.1,0.50159854]
[1770238954375,35.15064837,2174.2,2173.3,0.49833009]
[1770238954578,35.61619217,2174.2,2173.2,0.23053]
[1770238955679,35.15064837,2174.2,2173.3,0.49833009]
[1770238956075,0.4655438,2174.1,2173.1,0.00326845]
[1770238956580,0.4655438,2173.9,2172.6,0.72892009]
[1770238956983,0.4655438,2173.7,2172.2,0.49833009]
[1770238957476,35.61619217,2173.6,2172.3,0.49833009]
[1770238957682,0.4655438,2173.6,2172.3,0.50330445]
[1770238957879,35.61619217,2173.5,2172.3,0.50330445]
[1770238958084,0.4655438,2173.3,2172.3,0.50330445]
[1770238958380,0.4655438,2173.3,2171.5,0.49833009]
[1770238958579,75.95064837,2173.4,2170.3,0.23084]
[1770238958580,0.23065,2172.2,2170.3,0.23084]
[1770238958877,0.4655438,2172.0,2170.7,0.72912009]
[1770238959081,0.4655438,2172.0,2171.2,0.23075]
[1770238959383,0.4655438,2172.9,2171.8,0.72901009]
[1770238959580,34.18252837,2172.8,2172.1,1.55934009]
[1770238959877,0.4655438,2173.2,2172.3,0.23062]
[1770238960077,0.4655438,2173.0,2171.7,0.49833009]
[1770238960680,34.64807217,2172.9,2171.7,0.72902009]
[1770238960880,0.4655438,2172.9,2171.7,0.72902009]
[1770238961076,0.4655438,2173.3,2172.2,0.49833009]
[1770238961281,0.4655438,2173.2,2172.2,0.49833009]
[1770238961677,0.4655438,2173.0,2171.8,0.49833009]
[1770238961980,0.4655438,2173.0,2171.5,0.23071]
[1770238962175,34.18252837,2172.9,2171.7,0.49833009]
[1770238962381,40.8,2173.4,2172.1,0.49833009]
[1770238962382,34.18252837,2173.2,2172.1,0.49833009]
[1770238962578,0.4655438,2173.2,2171.7,0.49833009]
[1770238962786,0.4655438,2173.0,2171.8,0.72901009]
[1770238963283,34.18252837,2172.9,2172.0,0.72899009]
[1770238963777,33.65315758,2172.9,2172.1,0.49833009]
[1770238963977,41.2655438,2173.4,2172.3,0.72896009]
[1770238964279,33.65315758,2173.3,2172.3,0.72896009]
[1770238964980,33.65315758,2173.3,2172.4,0.23061]
[1770238965577,33.65315758,2173.3,2172.4,0.72894009]
[1770238966282,33.65315758,2173.2,2172.4,0.72894009]
[1770238967184,33.65315758,2173.2,2172.5,0.49833009]
[1770238967981,33.65315758,2173.2,2171.6,3.72641007]
[1770238967982,0.4655438,2173.1,2171.7,0.49833009]
[1770238968280,40.8,2173.0,2171.5,0.23071]
[1770238968474,0.4655438,2172.9,2171.5,0.49833009]
[1770238968677,0.4655438,2172.9,2171.7,0.72902009]
[1770238968881,33.65315758,2172.8,2171.9,0.23067]
[1770238969285,0.13285897,2172.4,2170.6,1.91886464]
[1770238969578,0.13285897,2172.2,2170.9,0.23077]
[1770238969777,49.265,2172.1,2170.9,2.26233398]
[1770238969974,76.04438866,2172.1,2170.9,2.26233398]
[1770238970280,26.77938866,2172.1,2171.3,2.03156398]
[1770238970678,0.6961138,2172.9,2171.2,0.23074]
[1770238970679,0.4655438,2172.9,2171.7,2.02331292]
[1770238970881,26.77938866,2172.8,2171.9,2.02331292]
[1770238971577,26.77938866,2172.8,2171.9,2.25398292]
[1770238972583,0.4655438,2173.3,2171.6,5.14204994]
[1770238972584,49.414,2173.4,2172.5,2.04587084]
[1770238972785,76.19338866,2173.4,2172.5,2.04936887]
[1770238973086,116.99338866,2173.4,2172.5,2.04936887]
[1770238973888,67.57938866,2173.4,2172.5,2.04936887]
[1770238974582,26.77938866,2173.4,2172.5,2.27997887]
[1770238975186,26.77938866,2173.4,2172.7,2.65678614]
[1770238975585,26.77938866,2173.4,2172.9,2.65678614]
[1770238976684,26.77938866,2173.4,2173.1,2.65678614]
[1770238977090,0.00590033,2173.5,2173.1,2.65678614]
[1770238977288,26.77938866,2173.4,2173.1,2.65678614]
[1770238977887,26.77938866,2173.4,2172.8,2.65678614]
[1770238978087,26.77938866,2173.4,2172.9,7.33128968]
[1770238978286,26.77938866,2173.4,2172.9,2.65678614]
[1770238979290,26.77938866,2173.4,2173.0,4.67581708]
[1770238979489,26.77938866,2173.4,2172.9,2.65678614]
[1770238979689,26.77938866,2173.4,2173.0,4.6758174]
[1770238979891,26.29823866,2173.3,2173.2,2.49835137]
[1770238980089,25.27219866,2173.3,2173.2,2.49835137]
[1770238980294,0.00590033,2173.5,2173.2,2.49835137]
[1770238980492,24.80428866,2173.4,2173.2,2.49835137]
[1770238980785,1.59670501,2174.3,2173.3,4.67649449]
[1770238980989,1.59670501,2174.3,2173.4,7.1744747]
[1770238980990,21.76122477,2174.2,2173.4,7.1744747]
[1770238981185,62.56122477,2174.2,2173.5,4.67984481]
[1770238981494,21.76122477,2174.2,2173.4,0.23051]
[1770238981688,2.56538011,2174.1,2173.5,4.67986098]
[1770238981886,2.56538011,2174.1,2173.1,4.08082994]
[1770238982091,2.56538011,2173.9,2173.0,4.08082994]
[1770238982389,2.56538011,2173.9,2173.1,8.7655912]
[1770238982594,2.56538011,2173.9,2173.2,4.68476126]
[1770238982897,21.76122477,2173.8,2173.0,4.08082994]
[1770238983091,21.76122477,2173.8,2173.1,4.68479257]
[1770238983290,21.76122477,2173.8,2173.2,4.68479257]
[1770238983491,21.76122477,2173.8,2173.0,4.08082994]
[1770238983686,21.76122477,2173.8,2173.1,4.68534712]
[1770238983891,21.76122477,2173.8,2173.2,4.68534712]
[1770238984092,21.28503477,2173.8,2173.4,2.49835137]
[1770238985596,23.85041488,2173.8,2173.3,1.07832]
[1770238985791,23.85041488,2173.8,2173.4,4.6843699]
[1770238986096,21.28503477,2173.8,2173.3,1.07832]
[1770238986296,21.28503477,2173.8,2173.4,4.68411405]
[1770238986497,21.28503477,2173.7,2173.3,1.07832]
[1770238986700,21.28503477,2174.0,2173.4,4.68407617]
[1770238986897,21.28503477,2174.0,2173.3,1.07832]
[1770238987098,23.85041488,2174.0,2173.4,4.68407528]
[1770238987295,23.85041488,2174.0,2173.3,1.07832]
[1770238987296,21.28503477,2173.9,2173.3,1.07832]
[1770238987695,21.28503477,2173.9,2173.4,4.6602797]
[1770238987895,21.28503477,2173.9,2173.3,5.15914994]
[1770238988092,2.56538011,2173.8,2173.3,1.07832]
[1770238988492,21.28503477,2173.7,2172.6,6.64787652]
[1770238988696,0.01510434,2173.5,2172.0,0.23066]
[1770238988896,0.01510434,2173.3,2172.0,0.23066]
[1770238989202,0.01510434,2172.9,2171.0,0.23076]
[1770238989500,0.74390571,2172.8,2171.1,0.23076]
[1770238989800,0.74390571,2172.7,2171.1,0.07780587]
[1770238989997,0.74390571,2172.7,2171.1,6.6288643]
[1770238990200,62.08153674,2172.6,2171.1,1.13928587]
[1770238990398,62.08153674,2172.6,2171.4,0.23072]
[1770238990598,62.08153674,2172.6,2171.5,2.51064295]
[1770238990793,0.7144266,2172.5,2171.1,2.58844882]
[1770238991098,5.3304266,2171.7,2169.9,2.74152295]
[1770238991399,0.7144266,2171.5,2169.9,2.74152295]
[1770238991593,0.7144266,2171.5,2170.2,0.23085]
[1770238991900,0.66517051,2171.3,2169.6,2.52083324]
[1770238992100,0.66103242,2171.1,2169.6,2.52083324]
[1770238992305,0.66103242,2171.0,2169.4,0.45289456]
[1770238992494,0.6363053,2170.9,2169.4,2.97602883]
[1770238993000,0.6363053,2170.7,2169.4,2.98108776]
[1770238993203,0.46,2170.6,2168.8,1.0626]
[1770238993404,2.56538011,2170.5,2168.8,1.0626]
[1770238993602,2.56538011,2170.3,2168.8,1.0626]
[1770238993898,2.56538011,2170.3,2168.7,0.23101]
[1770238994197,2.56538011,2170.1,2168.7,0.23432175]
[1770238994703,23.84691685,2170.0,2168.7,0.23432175]
[1770238994895,2.56538011,2170.0,2168.7,0.23432175]
[1770238995096,2.56538011,2169.8,2168.7,0.23432175]
[1770238995297,2.56538011,2169.8,2168.7,0.00331175]
[1770238995501,2.56538011,2169.6,2168.7,0.00331175]
[1770238995697,2.56538011,2169.4,2167.5,2.49835137]
[1770238995897,2.56538011,2169.2,2167.4,0.23115]
[1770238996105,23.84691685,2169.1,2167.7,3.79258137]
[1770238996298,2.56538011,2169.1,2167.9,2.49835137]
[1770238996601,2.56538011,2168.9,2167.9,2.49835137]
[1770238996800,2.56946451,2168.9,2167.9,0.0047554]
[1770238997002,21.28153674,2168.8,2167.9,0.0047554]
[1770238997302,23.84691685,2168.8,2167.9,0.0047554]
[1770238997502,2.56538011,2168.7,2167.9,0.0047554]
[1770238997899,21.28153674,2168.6,2167.9,0.0047554]
[1770238998496,0.0040844,2168.9,2167.9,2.50310677]
[1770238998700,19.37988917,2168.8,2167.9,2.50310677]
[1770238999099,0.0040844,2168.9,2167.9,2.50310677]
[1770238999304,0.0040844,2168.9,2168.2,2.72941137]
[1770238999698,17.38469433,2168.9,2168.2,2.72941137]
[1770239000103,16.86566433,2168.9,2168.5,2.49835137]
[1770239000304,2.56538011,2169.8,2168.5,2.49835137]
[1770239000604,16.86566433,2169.7,2168.6,2.72937137]
[1770239000805,0.00439012,2169.7,2168.8,2.72935137]
[1770239001104,16.87005445,2169.7,2168.8,2.72935137]
[1770239001400,16.87005445,2169.7,2168.9,0.9221]
[1770239002702,16.87005445,2169.7,2168.9,3.65144137]
[1770239003107,16.87005445,2169.7,2168.9,1.15309]
[1770239005011,20.62213239,2169.7,2168.9,1.15309]
[1770239007105,3.75646806,2169.7,2168.9,1.15309]
[1770239007312,16.86566433,2169.6,2169.0,0.23098]
[1770239007505,16.86566433,2169.6,2169.0,3.94821738]
[1770239010005,3.20319794,2169.6,2168.9,1.15309]
[1770239010209,6.69838419,2169.5,2168.9,1.15309]
[1770239010410,0.00439012,2169.4,2168.9,0.9221]
[1770239010610,0.00439012,2169.4,2168.3,0.23105]
[1770239010812,6.69838419,2169.3,2168.3,0.23105]
[1770239011005,6.69838419,2169.3,2168.6,0.23102]
[1770239011507,6.22332419,2169.3,2168.7,0.23101]
[1770239011710,5.75554419,2169.3,2168.7,0.23101]
[1770239011906,4.79259419,2169.3,2168.7,0.23101]
[1770239012113,4.32039419,2169.3,2168.7,0.23101]
[1770239012313,3.32770419,2169.3,2168.7,0.23101]
[1770239012515,2.29034419,2169.3,2168.8,0.231]
[1770239012713,1.32949419,2169.3,2168.8,0.231]
[1770239012919,5.08157213,2169.3,2168.8,0.231]
[1770239013618,0.86216419,2169.3,2168.8,0.231]
[1770239014013,0.00470392,2169.4,2168.8,0.231]
[1770239014716,3.75646806,2169.3,2168.8,0.231]
[1770239015313,3.75207794,2169.1,2168.3,0.23105]
[1770239015511,3.75207794,2169.1,2168.4,0.23104]
[1770239016113,0.461,2170.0,2169.3,0.23095]
[1770239016318,0.461,2171.0,2169.7,0.2309]
[1770239016612,0.00439012,2170.7,2169.8,0.23089]